[Event "Polish Youth B18 Championship 2023"]
[Site "Jastrzebia Gora"]
[Date "2023.03.15"]
[Round "5.20"]
[White "Pisarek, Jan"]
[Black "Bem, Tymoteusz"]
[Result "1-0"]
[ECO "B31"]
[WhiteElo "1931"]
[BlackElo "1748"]
[Annotator "TA"]
[PlyCount "71"]
[EventDate "2023.03.11"]
[EventType "swiss"]
[EventCountry "POL"]
[SourceTitle "playchess.com"]
[Source "ChessBase"]
[SourceQuality "1"]
[TimeControl "40/5400+30:1800+30"]

{[%evp 16,71,28,32,36,-25,-29,-22,-30,-60,-25,-28,-26,-22,14,14,209,136,116,103,198,175,496,62,184,181,182,193,193,187,268,277,259,263,370,360,29987,781,1439,1442,1583,1692,1792,1429,29949,29942,5614,883,5506,5457,29982,29982,29990,29991,29991,29992,29992,29993]} 1. e4 {[%emt 0:00:05]} c5 {[%emt 0:00:15]} 2. Nf3 {[%emt 0:00:12]} Nc6 {[%emt 0:00:06]} 3. Bb5 {[%emt 0:00:15]} g6 {[%emt 0:00:16]} 4. O-O {[%emt 0:00:15]} Bg7 {[%emt 0:00:09]} 5. c3 {[%emt 0:00:11]} e5 {[%emt 0:00:14]} 6. d4 {[%emt 0:00:52]} cxd4 {[%emt 0:00:07]} 7. cxd4 {[%emt 0:00:07]} Nxd4 {[%emt 0:00:06]} 8. Nxd4 {[%emt 0:09:36]} exd4 {[%emt 0:00:07]} 9. Bf4 {[%emt 0:10:37] 9.Bf4 scores better than 9.e5.} Ne7 {[%emt 0:01:51] B31: Sicilian: 2...Nc6 3 Bb5 g6.} 10. Bd6 {[%emt 0:24:49]} ({White should play} 10. Nd2 $14) 10... Qb6 $11 {[%emt 0:00:36][%csl LRb5,LRd6]} 11. Bxe7 {[%emt 0:01:11]} Kxe7 {[%emt 0:00:02] The position is equal.} 12. Bc4 {[%emt 0:03:43][%cal Oe4e5] [#]} Rd8 $146 {[%emt 0:02:12]} (12... Qxb2 13. Nd2 $11) (12... d6 {simplifies} 13. Nd2 Be6 14. Bd3 Rac8) ({Predecessor:} 12... Re8 13. Qf3 Qf6 14. Qa3+ Qd6 15. Qb3 Qb6 16. Bxf7 Qxb3 17. Bxb3 d6 18. Nd2 Be6 {½-½ Caletka,R (2299)-Paulus,V (2060) CZE-ch Betsys Online Blitz 2021 (4)}) 13. Qf3 {[%emt 0:06:34]} d5 {[%emt 0:11:37]} 14. exd5 {[%emt 0:05:55][%cal Od5d6] And now d6+! would win.} Qd6 {[%emt 0:01:02]} 15. Nd2 {[%emt 0:01:11] Threatens to win with Ne4.} f5 {[%emt 0:01:05] Prevents Ne4} (15... Qf6 $11 {and Black stays safe.}) 16. Rfe1+ {[%emt 0:02:25]} (16. Qh3 h5 $14) 16... Kf8 {[%emt 0:01:51]} 17. Bb3 {[%emt 0:09:25] aiming for Ne4.} (17. Ne4 {feels hotter.} Qb4 18. b3 Re8 19. a3) 17... Qf6 {[%emt 0:07:18]} (17... Bf6 $16) 18. Rac1 $1 $18 {[%emt 0:05:17][%cal Od5d6]} Bd7 $2 {[%emt 0:09:44] [#]} (18... Bh6 {is more resistant.} 19. Qd3 Bf4) 19. Rc7 $2 {[%emt 0:03:38]} ({White must play} 19. d6 $1 $18 {Threatening mate with Qd5.} Qxd6 20. Ne4 (20. Qxb7 Rac8 $14)) 19... Qd6 {[%emt 0:04:39]} (19... Rac8 $1 $14 20. Rxb7 Qa6) 20. Rxb7 {[%emt 0:01:55][%cal Oe1e6] Re6! is the strong threat.} Re8 {[%emt 0:02:45] Against Re6. Black is weak on the light squares} 21. Rxe8+ {[%emt 0:01:58]} Rxe8 {[%emt 0:00:40] [#]} 22. g3 $1 $36 {[%emt 0:00:22][%mdl 2048] Black is under strong pressure.} (22. Rxa7 $2 {loses.} Re1+ 23. Nf1 Bb5 $19) 22... Re1+ {[%emt 0:11:05]} (22... Rd8 {might work better.} 23. Nc4 (23. Rxa7 Qb6 $18) 23... Qe7 24. Rxa7 Qe1+ 25. Kg2 Qe4) 23. Kg2 {[%emt 0:00:03] Strongly threatening Nc4.} Be8 {[%emt 0:00:50]} 24. Rxa7 {[%emt 0:02:13]} Qc5 {[%emt 0:01:04]} (24... Qb8 {is a better defense.}) 25. Ra8 {[%emt 0:00:54]} Qc1 $2 {[%emt 0:00:33]} (25... Bh6 $18 26. Qd3 Kg7) 26. Qd3 {[%emt 0:02:32]} (26. d6 $142 Bf6 27. Qb7 Be7 28. d7 {[%mdl 64] Pin} Kg7 29. dxe8=Q Kh6 30. Ra7 Rg1+ 31. Kh3) 26... Rg1+ {[%emt 0:12:39]} 27. Kh3 {[%emt 0:00:05]} Re1 {[%emt 0:07:54] Prevents Qe2.} 28. Nf3 {[%emt 0:01:12][%csl LRd4,LRe1]} Re4 {[%emt 0:02:33]} 29. d6 {[%emt 0:01:42] White wants to mate with d7.} Bf6 {[%emt 0:02:57]} 30. d7 {[%emt 0:00:57][%mdl 64] Pin} Qc6 {[%emt 0:00:54]} 31. Rxe8+ {[%emt 0:00:44]} (31. dxe8=R+ $142 Rxe8 32. Ra6 {[%mdl 64] Skewer, Deflection}) 31... Kg7 {[%emt 0:01:50]} 32. d8=Q {[%cal Od3e4] Qxe4! would kill now.} Bxd8 {[%emt 0:00:16]} 33. Rxd8 {[%emt 0:01:09] White mates.} g5 {[%emt 0:00:08]} 34. Nxg5 {[%emt 0:01:13]} Qh6+ {[%emt 0:01:32]} 35. Kg2 {[%emt 0:00:05]} Qxg5 {[%emt 0:00:07]} 36. Rg8+ {[%emt 0:00:07] Weighted Error Value: White=0.30/Black=1.20} 1-0

[Event "Polish Youth B18 Championship 2023"]
[Site "Jastrzebia Gora"]
[Date "2023.03.15"]
[Round "5.21"]
[White "Czarniecki, Pawel"]
[Black "Zeissel, Andrzej"]
[Result "0-1"]
[ECO "B20"]
[WhiteElo "1625"]
[BlackElo "1717"]
[Annotator "NA RC COMBH"]
[PlyCount "80"]
[EventDate "2023.03.11"]
[EventType "swiss"]
[EventCountry "POL"]
[SourceTitle "playchess.com"]
[Source "ChessBase"]
[SourceQuality "1"]
[TimeControl "40/5400+30:1800+30"]

1. e4 {[%emt 0:00:01]} c5 {[%emt 0:00:05]} 2. b3 {[%emt 0:00:03]} e6 {[%emt 0:00:47]} 3. Bb2 {[%emt 0:00:07]} Nc6 {[%emt 0:00:11]} 4. Bb5 {[%emt 0:00:25]} Qc7 {[%emt 0:02:41]} 5. Bxc6 {[%emt 0:01:30]} Qxc6 {[%emt 0:00:42]} 6. d3 {[%emt 0:00:44]} Nf6 {[%emt 0:03:29]} 7. Qf3 {[%emt 0:03:35]} Be7 {[%emt 0:01:12]} 8. Qg3 {[%emt 0:00:24]} O-O {[%emt 0:02:25]} 9. h4 {[%emt 0:02:19]} d5 {[%emt 0:02:27]} 10. e5 {[%emt 0:02:02]} Nd7 {[%emt 0:04:07]} 11. h5 {[%emt 0:03:24]} c4 {[%emt 0:01:31]} 12. d4 {[%emt 0:10:05]} cxb3 {[%emt 0:01:22]} 13. Qxb3 {[%emt 0:00:28]} b6 {[%emt 0:05:03]} 14. Qd3 {[%emt 0:07:43]} a5 {[%emt 0:01:28]} 15. Ne2 {[%emt 0:00:19]} Ba6 {[%emt 0:00:41]} 16. Qd2 {[%emt 0:00:08]} Rfc8 {[%emt 0:03:29]} 17. c3 {[%emt 0:00:49]} Qc4 {[%emt 0:04:30]} 18. Rh3 {[%emt 0:03:32]} b5 {[%emt 0:06:44]} 19. Qd1 {[%emt 0:14:24]} b4 {[%emt 0:03:31]} 20. Nd2 {[%emt 0:00:58]} Qb5 {[%emt 0:03:29]} 21. a4 {[%emt 0:04:16]} Qc6 {[%emt 0:07:05]} 22. Nf4 {[%emt 0:05:51]} Nb6 {[%emt 0:03:39]} 23. Rg3 {[%emt 0:16:46]} Nc4 {[%emt 0:03:56]} 24. h6 {[%emt 0:02:01]} g6 {[%emt 0:04:59]} 25. Nxc4 {[%emt 0:12:44]} Qxc4 {[%emt 0:00:02]} 26. Ne2 {[%emt 0:00:09]} Rab8 {[%emt 0:01:46]} 27. Rc1 {[%emt 0:00:58]} Qa2 {[%emt 0:04:27]} 28. cxb4 {[%emt 0:05:19]} Qxb2 {[%emt 0:06:13]} 29. Rxc8+ {[%emt 0:00:37]} Rxc8 {[%emt 0:00:44]} 30. b5 {[%emt 0:00:07]} Bb7 {[%emt 0:01:35]} 31. Kf1 {[%emt 0:01:10]} Rc2 {[%emt 0:02:39]} 32. f4 {[%emt 0:01:24]} Bb4 {[%emt 0:00:28]} 33. Rd3 {[%emt 0:01:05]} Qa2 {[%emt 0:01:31]} 34. Rg3 {[%emt 0:01:02]} Rd2 {[%emt 0:01:01]} 35. Qe1 {[%emt 0:00:12]} Rb2 {[%emt 0:01:01]} 36. Qd1 {[%emt 0:00:19]} Rb1 {[%emt 0:00:06]} 37. Nc1 {[%emt 0:00:05]} Qc4+ {[%emt 0:00:08]} 38. Kf2 {[%emt 0:00:32]} Rxc1 {[%emt 0:00:09]} 39. Qg4 {[%emt 0:00:10]} Qf1+ {[%emt 0:00:44]} 40. Ke3 {[%emt 0:00:00]} Re1+ {[%emt 0:00:00]} 0-1

[Event "Polish Youth B18 Championship 2023"]
[Site "Jastrzebia Gora"]
[Date "2023.03.15"]
[Round "5.22"]
[White "Wesolek, Krzysztof"]
[Black "Sternik, Piotr"]
[Result "0-1"]
[ECO "B13"]
[WhiteElo "1765"]
[BlackElo "1746"]
[Annotator "NA RC COMBH"]
[PlyCount "68"]
[EventDate "2023.03.11"]
[EventType "swiss"]
[EventCountry "POL"]
[SourceTitle "playchess.com"]
[Source "ChessBase"]
[SourceQuality "1"]
[TimeControl "40/5400+30:1800+30"]

1. e4 {[%emt 0:00:03]} c6 {[%emt 0:00:07]} 2. d4 {[%emt 0:00:05]} d5 {[%emt 0:00:05]} 3. exd5 {[%emt 0:00:29]} cxd5 {[%emt 0:00:07]} 4. Nf3 {[%emt 0:00:04]} Nc6 {[%emt 0:01:21]} 5. c3 {[%emt 0:00:05]} Qc7 {[%emt 0:00:11]} 6. g3 {[%emt 0:00:06]} Bg4 {[%emt 0:05:57]} 7. Bf4 {[%emt 0:12:25]} Qb6 {[%emt 0:01:02]} 8. b3 {[%emt 0:06:29]} Nf6 {[%emt 0:07:54]} 9. Bg2 {[%emt 0:18:44]} e6 {[%emt 0:04:04]} 10. O-O {[%emt 0:02:48]} Be7 {[%emt 0:00:36]} 11. h3 {[%emt 0:00:09]} Bh5 {[%emt 0:00:47]} 12. Re1 {[%emt 0:05:21]} O-O {[%emt 0:00:55]} 13. g4 {[%emt 0:09:10]} Bg6 {[%emt 0:01:39]} 14. Nh4 {[%emt 0:04:11]} Bxb1 {[%emt 0:28:16]} 15. Rxb1 {[%emt 0:01:32]} Ne4 {[%emt 0:03:55]} 16. Bxe4 {[%emt 0:02:13]} dxe4 {[%emt 0:05:13]} 17. Ng2 {[%emt 0:00:32]} g5 {[%emt 0:13:08]} 18. Be3 {[%emt 0:02:14]} Qa5 {[%emt 0:00:06]} 19. Bd2 {[%emt 0:21:18]} f5 {[%emt 0:00:57]} 20. gxf5 {[%emt 0:02:12]} Qxf5 {[%emt 0:00:08]} 21. Qe2 {[%emt 0:00:49]} Rf6 {[%emt 0:01:41]} 22. Ne3 {[%emt 0:00:55]} Qxh3 {[%emt 0:00:56]} 23. Ng4 {[%emt 0:01:11]} Rg6 {[%emt 0:02:03]} 24. Qxe4 {[%emt 0:00:37]} Rf8 {[%emt 0:00:18]} 25. Re3 {[%emt 0:05:23]} Qh4 {[%emt 0:02:58]} 26. Rg3 {[%emt 0:00:04]} Bd6 {[%emt 0:07:10]} 27. Rg2 {[%emt 0:00:01]} Bf4 {[%emt 0:01:01]} 28. Be1 {[%emt 0:03:04]} Qh3 {[%emt 0:05:31]} 29. Rd1 {[%emt 0:00:41]} Ne7 {[%emt 0:03:45]} 30. Rd3 {[%emt 0:00:05]} Qh4 {[%emt 0:00:06]} 31. Kf1 {[%emt 0:02:18]} Nf5 {[%emt 0:02:09]} 32. Ke2 {[%emt 0:00:28]} h5 {[%emt 0:00:35]} 33. Ne3 {[%emt 0:00:21]} Bxe3 {[%emt 0:00:24]} 34. fxe3 {[%emt 0:00:05]} Qxe4 {[%emt 0:00:05]} 0-1

[Event "Polish Youth B18 Championship 2023"]
[Site "Jastrzebia Gora"]
[Date "2023.03.16"]
[Round "6.1"]
[White "Luczak, Filip"]
[Black "Dzida, Kamil"]
[Result "1/2-1/2"]
[ECO "A01"]
[WhiteElo "2345"]
[BlackElo "2333"]
[Annotator "TA"]
[PlyCount "63"]
[EventDate "2023.03.11"]
[EventType "swiss"]
[EventCountry "POL"]
[SourceTitle "playchess.com"]
[Source "ChessBase"]
[SourceQuality "1"]
[TimeControl "40/5400+30:1800+30"]

{[%evp 10,63,8,3,2,9,9,0,5,0,0,0,0,0,0,0,0,0,0,0,0,0,0,-12,0,0,0,4,25,27,22,26,28,38,34,23,38,37,35,24,30,0,0,-11,-20,-14,-12,0,0,0,0,0,0,0,0,0]} 1. b3 {[%emt 0:01:32]} e5 {[%emt 0:00:07][%cal Be7e5,Be5e4][%mdl 32]} 2. Bb2 {[%emt 0:00:04]} Nc6 {[%emt 0:00:06]} 3. e3 {[%emt 0:00:02]} Nf6 {[%emt 0:00:07]} 4. Nf3 {[%emt 0:00:04]} e4 {[%emt 0:00:21]} 5. Nd4 {[%emt 0:00:10]} Nxd4 {[%emt 0:00:23]} 6. Bxd4 {[%emt 0:00:03]} Be7 {[%emt 0:00:07] A01: Nimzowitsch-Larsen Opening.} 7. c4 {[%emt 0:03:41]} O-O {[%emt 0:00:06]} 8. Nc3 {[%emt 0:02:16]} c5 {[%emt 0:00:05]} 9. Bxf6 {[%emt 0:01:20]} Bxf6 {[%emt 0:00:06]} 10. Qc2 {[%emt 0:01:18]} Bxc3 {[%emt 0:00:07]} 11. dxc3 {[%emt 0:07:45]} Qe7 {[%emt 0:00:14]} 12. Be2 {[%emt 0:04:11]} b6 {[#]} 13. Rd1 $146 {[%emt 0:07:15]} ({Predecessor:} 13. O-O Bb7 14. Rfd1 d6 15. b4 f5 16. g3 Bc6 17. Bf1 Rfd8 18. Rab1 Rab8 19. Be2 Be8 20. Rd5 Qf6 21. Rbd1 {½-½ Ilken,Z (2168)-Coyne,D (2187) W-ch WS/M/325 email 2011}) 13... d6 {[%emt 0:13:41]} 14. Qd2 {[%emt 0:09:44]} Rd8 {[%emt 0:00:11]} 15. O-O {[%emt 0:00:07]} Bb7 {[%emt 0:00:21]} 16. f4 {[%emt 0:03:07]} d5 {[%emt 0:07:22]} 17. Qc2 {[%emt 0:04:16]} Qf6 {[%emt 0:00:50]} 18. cxd5 {[%emt 0:01:22]} Bxd5 {[%emt 0:00:15]} 19. Rd2 {[%emt 0:02:10]} Rd6 {[%emt 0:00:11]} 20. c4 {[%emt 0:02:29]} Bc6 {[%emt 0:00:11]} 21. Rxd6 {[%emt 0:00:08]} Qxd6 {[%emt 0:00:03]} 22. Rd1 {[%emt 0:00:06]} Qf6 {[%emt 0:00:53]} 23. Qd2 {[%emt 0:00:46]} Kf8 {[%emt 0:02:01]} 24. Bg4 {[%emt 0:04:49]} Re8 {[%emt 0:07:32]} 25. a3 {[%emt 0:03:40][%cal Oh2h4]} g6 {[%emt 0:03:53] The position is equal.} 26. b4 {[%emt 0:02:00]} Ba4 {[%emt 0:00:32]} 27. Qd6+ {[%emt 0:07:20]} Qxd6 {[%emt 0:00:05]} 28. Rxd6 {[%emt 0:00:04]} f5 {[%emt 0:05:51] [#] Threatens to win with ...cxb4.} 29. Be2 {[%emt 0:02:57]} Ke7 {[%emt 0:01:03]} 30. bxc5 {[%emt 0:03:03]} Rc8 {[%emt 0:00:14]} 31. Rd5 {[%emt 0:00:04]} Rxc5 {[%emt 0:01:50]} 32. Rxc5 {[%emt 0:00:22] Weighted Error Value: White=0.03 (flawless) /Black=0.02 (flawless)} 1/2-1/2

[Event "Polish Youth B18 Championship 2023"]
[Site "Jastrzebia Gora"]
[Date "2023.03.16"]
[Round "6.2"]
[White "Ochedzan, Tymon"]
[Black "Chyzy, Jakub"]
[Result "1-0"]
[ECO "C11"]
[WhiteElo "2240"]
[BlackElo "2250"]
[Annotator "TA"]
[PlyCount "119"]
[EventDate "2023.03.11"]
[EventType "swiss"]
[EventCountry "POL"]
[SourceTitle "playchess.com"]
[Source "ChessBase"]
[SourceQuality "1"]
[TimeControl "40/5400+30:1800+30"]

{[%evp 16,119,24,13,26,4,4,7,0,2,15,18,13,5,12,17,0,-12,43,0,16,16,16,18,10,11,20,25,27,23,14,17,17,16,17,17,17,17,16,12,17,12,17,21,15,15,58,57,162,156,182,153,228,242,182,0,0,0,0,0,0,0,0,0,7,11,42,102,95,10,27,0,0,0,0,0,976,907,241,264,12843,12843,12844,12844,12845,12845,12845,0,0,0,0,0,12841,12842,12842,12843,12843,12843,12844,12844,12845,12845,12845,12846,12846,12847]} 1. e4 {[%emt 0:01:47]} e6 {[%emt 0:00:16]} 2. d4 {[%emt 0:00:22]} d5 {[%emt 0:00:03]} 3. Nc3 {[%emt 0:00:08]} Nf6 {[%emt 0:00:06]} 4. e5 {[%emt 0:00:06]} Nfd7 {[%emt 0:00:03]} 5. f4 {[%emt 0:00:11]} c5 {[%emt 0:00:03]} 6. Nf3 {[%emt 0:00:06]} Nc6 {[%emt 0:00:03]} 7. Be3 {[%emt 0:00:31]} a6 {[%emt 0:00:04]} 8. Qd2 {[%emt 0:00:18]} b5 {[%emt 0:00:08]} 9. a3 {[%emt 0:00:24]} Qa5 {[%emt 0:00:07] outshines the older 9...Qb6. C11: French: Classical System: 4 e5 and 4 Bg5 dxe4.} 10. dxc5 {[%emt 0:02:15]} Bxc5 {[%emt 0:00:07]} 11. Bxc5 {[%emt 0:00:46]} Nxc5 {[%emt 0:00:06] The position is equal.} 12. Nd4 {[%emt 0:00:10]} Nxd4 {[%emt 0:00:10]} 13. Qxd4 {[%emt 0:05:08]} Na4 {[%emt 0:00:07]} 14. b4 {[%emt 0:11:46]} Qb6 {[%emt 0:00:04]} 15. Qxb6 {[%emt 0:00:05]} Nxb6 {[%emt 0:00:03]} 16. Bd3 {[%emt 0:02:23] [#]} f6 $146 {[%emt 0:08:36]} ({Better is} 16... Bb7 $11) ({Predecessor:} 16... Bd7 17. Ne2 Ke7 18. Nd4 g6 19. Kf2 h5 20. g3 Rac8 21. h3 Na4 22. Ke3 Rh7 {½-½ Frolyanov,D (2569)-Potkin,V (2599) RUS-chT rapid 2015 (9.11)}) 17. O-O {[%emt 0:02:32]} fxe5 {[%emt 0:03:16]} 18. fxe5 {[%emt 0:00:23]} Bd7 {[%emt 0:04:59]} 19. Ne2 {[%emt 0:05:54]} Ke7 {[%emt 0:05:18]} 20. Nd4 {[%emt 0:01:03]} Raf8 {[%emt 0:19:43]} 21. Rxf8 {[%emt 0:04:01]} Kxf8 {[%emt 0:00:27]} 22. Nb3 {[%emt 0:01:21]} Ke7 {[%emt 0:06:02]} 23. Kf2 {[%emt 0:04:36]} Nc4 {[%emt 0:07:16]} 24. Bxc4 {[%emt 0:05:53]} dxc4 $11 {[%emt 0:00:08][%mdl 4096] Endgame KRB-KRN} 25. Nd4 {[%emt 0:03:54]} Ra8 {[%emt 0:02:54]} 26. Rd1 {[%emt 0:02:25]} a5 {[%emt 0:00:54]} 27. c3 {[%emt 0:05:44]} axb4 {[%emt 0:00:41]} 28. axb4 {[%emt 0:02:03]} Ra2+ {[%emt 0:05:28]} 29. Ne2 {[%emt 0:00:20]} Be8 {[%emt 0:09:16]} 30. h3 {[%emt 0:08:48]} Bc6 {[%emt 0:04:48][%cal Oc6g2]} 31. Ke3 $1 {[%emt 0:01:42]} Bxg2 {[%emt 0:19:44]} (31... Be8 $14) 32. Rg1 $18 {[%emt 0:00:16]} Bxh3 {[%emt 0:00:16]} 33. Rxg7+ {[%emt 0:00:16]} Kf8 {[%emt 0:00:32]} (33... Kd8 $16 {might work better.}) 34. Rxh7 {[%emt 0:00:25]} Bf5 {[%emt 0:00:11]} 35. Rb7 {[%emt 0:04:01]} (35. Rh1 $18) 35... Rc2 $1 $11 {[%emt 0:00:14]} 36. Rxb5 {[%emt 0:02:05] And now Rc5 would win.} Bg4 $1 {[%emt 0:00:55]} 37. Nd4 {[%emt 0:03:09]} Rxc3+ {[%emt 0:00:06]} 38. Kf4 {[%emt 0:01:40]} Rd3 $1 {[%emt 0:01:36]} 39. Nc2 {[%emt 0:02:09]} Bh3 {[%emt 0:03:09]} 40. Rc5 {[%emt 0:00:00]} c3 {[%emt 0:00:00]} 41. b5 {[%emt 0:07:10]} Bg2 {[%emt 0:09:09] [#]} 42. b6 {[%emt 0:03:55]} ({White should try} 42. Ne1 $1 $16 {[%cal Re1d3]} Rd2 43. Rxc3) 42... Bh1 {[%emt 0:04:27]} 43. Kg5 {[%emt 0:04:28] aiming for Kf6.} Ke7 {[%emt 0:15:47]} 44. Rc7+ {[%emt 0:09:45]} Kd8 {[%emt 0:00:08]} 45. Nb4 {[%emt 0:02:04][%mdl 64] Deflection} Rd2 {[%emt 0:04:57][%mdl 8192]} (45... Rd4 $11 46. Nc6+ Bxc6 47. Rxc6 Rb4) 46. Rxc3 $18 {[%emt 0:01:56]} Rb2 {[%emt 0:00:27]} 47. Rc4 {[%emt 0:01:26]} Kd7 $2 {[%emt 0:00:35]} (47... Bd5 48. Rh4 Bg2) 48. Rc7+ {[%emt 0:06:48]} Kd8 {[%emt 0:00:28]} 49. Nc6+ {[%emt 0:00:09]} Bxc6 {[%emt 0:00:09]} 50. Rxc6 {[%emt 0:00:03] KR-KR} Kd7 {[%emt 0:00:46] [#]} 51. Rd6+ $2 {[%emt 0:00:11]} (51. Rc7+ $1 $18 Kd8 52. Rb7) 51... Ke7 $11 {[%emt 0:00:04]} 52. Kf4 {[%emt 0:00:10]} Rb4+ {[%emt 0:00:27]} 53. Ke3 {[%emt 0:00:30] Threatens to win with Kd3.} Rb3+ {[%emt 0:01:05][%mdl 8192]} (53... Rb1 $11) 54. Kd4 $18 {[%emt 0:00:38] White is clearly winning.} Rb5 {[%emt 0:00:05]} 55. Kc4 {[%emt 0:00:50]} Rb1 {[%emt 0:00:50]} 56. Kc5 {[%emt 0:01:06]} Rb2 {[%emt 0:00:36]} 57. Rd4 {[%emt 0:01:51]} Rc2+ {[%emt 0:00:29]} 58. Rc4 {[%emt 0:00:14]} Rb2 {[%emt 0:00:25]} 59. Kc6 {[%emt 0:00:11]} Kd8 {[%emt 0:00:12]} 60. b7 {[%emt 0:00:33] Weighted Error Value: White=0.22 (precise) /Black=0.15 (very precise)} 1-0

[Event "Polish Youth B18 Championship 2023"]
[Site "Jastrzebia Gora"]
[Date "2023.03.16"]
[Round "6.3"]
[White "Kacprzak, Kacper"]
[Black "Biesiadecki, Adam"]
[Result "1/2-1/2"]
[ECO "B31"]
[WhiteElo "2248"]
[BlackElo "1761"]
[Annotator "TA"]
[PlyCount "61"]
[EventDate "2023.03.11"]
[EventType "swiss"]
[EventCountry "POL"]
[SourceTitle "playchess.com"]
[Source "ChessBase"]
[SourceQuality "1"]
[TimeControl "40/5400+30:1800+30"]

{[%evp 15,61,20,18,0,0,0,0,-18,0,0,0,0,0,0,0,0,2,0,14,0,5,-1,0,0,31,14,13,6,9,16,12,0,0,0,0,0,0,0,0,0,0,0,0,0,0,0,0,0]} 1. e4 {[%emt 0:00:01]} c5 {[%emt 0:00:04]} 2. Nf3 {[%emt 0:00:04]} Nc6 {[%emt 0:00:07]} 3. Bb5 {[%emt 0:00:05]} g6 {[%emt 0:00:08]} 4. Bxc6 {[%emt 0:00:05]} dxc6 {[%emt 0:00:07]} 5. d3 {[%emt 0:00:57]} Bg7 {[%emt 0:00:13]} 6. Nc3 {[%emt 0:00:34]} e5 {[%emt 0:00:57]} 7. Be3 {[%emt 0:00:59]} b6 {[%emt 0:00:17]} 8. h3 {[%emt 0:00:20]} Ne7 {[%emt 0:02:14]} 9. Qd2 {[%emt 0:07:22] B31: Sicilian: 2...Nc6 3 Bb5 g6.} h6 {[%emt 0:00:20]} 10. O-O-O {[%emt 0:10:33]} Be6 {[%emt 0:02:04]} 11. Ng1 {[%emt 0:01:43]} Qd7 {[%emt 0:06:06][%cal Oe7d5] [#]} (11... f5 $5 {[%cal Rf5f4]} 12. Qe2 f4 $15) 12. f4 $146 {[%emt 0:01:18]} ({Predecessor:} 12. Nge2 f5 13. f4 exf4 14. Nxf4 Bf7 15. d4 c4 16. d5 fxe4 17. Bd4 O-O 18. Bxg7 Kxg7 19. Qd4+ Kh7 20. Nxe4 Ng8 21. h4 {1-0 Sax,G (2584)-Wahedi,A (2142) Neckar op-A 6th 2002 (1)}) 12... exf4 {[%emt 0:01:36]} 13. Bxf4 {[%emt 0:00:05]} O-O-O {[%emt 0:00:56]} 14. Nf3 {[%emt 0:01:40]} g5 {[%emt 0:03:01]} 15. Bh2 {[%emt 0:05:36]} Ng6 {[%emt 0:01:19]} 16. Kb1 {[%emt 0:01:47]} f5 {[%emt 0:09:17]} 17. exf5 {[%emt 0:02:53]} Bxf5 {[%emt 0:00:12]} 18. g4 {[%emt 0:02:23]} Be6 {[%emt 0:00:13]} 19. Rhe1 {[%emt 0:15:12]} Bd5 {[%emt 0:06:06] A strong pair of Bishops.} 20. Ne5 {[%emt 0:04:47]} Nxe5 {[%emt 0:00:47] The position is equal.} 21. Bxe5 {[%emt 0:00:06]} Bxe5 {[%emt 0:13:22]} 22. Rxe5 {[%emt 0:00:09]} Rde8 {[%emt 0:05:30]} 23. Rde1 {[%emt 0:14:36]} Rxe5 {[%emt 0:00:39]} 24. Rxe5 {[%emt 0:00:05]} Re8 {[%emt 0:01:04]} 25. Re3 {[%emt 0:06:14]} Kd8 {[%emt 0:07:10]} 26. Kc1 {[%emt 0:01:20]} Rxe3 {[%emt 0:01:12]} 27. Qxe3 {[%emt 0:00:05]} Qe7 {[%emt 0:00:35]} 28. Nxd5 {[%emt 0:01:20]} cxd5 {[%emt 0:00:10]} 29. Kd2 {[%emt 0:00:05]} Qf6 {[%emt 0:01:42]} 30. c3 {[%emt 0:00:38]} Kd7 {[%emt 0:01:57]} 31. d4 {[%emt 0:00:36] Not much happened in this game.   Weighted Error Value: White=0.04 (flawless) /Black=0.04 (flawless)} 1/2-1/2